Workbook

Sheet START
A2: STAP 1 | C2: Gemiddelde dagtemperatuur
A3: 1. BINNENTEMPERATUUR
A4: 1.1 | B4: Lees de binnentemperatuur uit.
C5: Ga naar blad "Binnentemperatuur'
C6: Kolom A: de datum en tijd van elke temperatuurregistratie na uitlezen van de temperatuursensoren.
C7: Kolom B: de temperatuur van elke temperatuurregistratie na uitlezen van de temperatuursensoren.
A9: 1.2 | B9: Bereken de gemiddelde dagtemperatuur.
C10: Kolom C: de gemiddelde dagtemperatuur
A12: 2. BUITENTEMPERATUUR
A13: 2.1 | B13: Lees de buitentemperatuur uit.
C14: Ga naar blad "Buitentemperatuur'
C15: Kolom A: de datum en tijd van elke temperatuurregistratie na uitlezen van de temperatuursensoren.
C16: Kolom B: de temperatuur van elke temperatuurregistratie na uitlezen van de temperatuursensoren.
A18: 2.2 | B18: Bereken de gemiddelde dagtemperatuur.
C19: Kolom C: de gemiddelde dagtemperatuur
A22: STAP 2 | C22: Waardes voor de hele boom
A23: 1. CHILLING
B24: = de blootstelling van een boom aan periodes van lage temperaturen (tussen 0 en 8 °C)
B25: FORMULE: | C25: Ga naar blad "Buitentemperatuur'
C26: Kijk naar de formule in Kolom D, met de waarde van Kolom C = de gemiddelde dagtemperatuur
C27: =ALS( EN(Cx>0,Cx<8) ; 1 ; 0 ) (in deze formule is 'x' telkens een andere dag)
B29: LOGICA: | C29: Als de gemiddelde dagtemperatuur groter is dan 0 °C en kleiner dan 8 °C, dan is de waarde "1", anders is de waarde "0"
C30: Bij het maken van de som over kolom D kennen we het aantal chilling dagen = alle dagen met waarde "1"
C31: = som (alle dagen met waarde "1")
A35: 2. FORCING
B36: = de blootstelling van een boom aan periodes van warme temperaturen (vanaf 5 °C) uitgedrukt in 'growing degree days'
A37: 2.1. | B37: Buiten
B38: FORMULE: | C38: Ga naar blad "Buitentemperatuur'
C39: Kijk naar de formule in Kolom E
D40: =ALS( Cx>5 ; Cx-5 ; 0 ) (in deze formule is 'x' telkens een andere dag)
D41: met de waarde in Kolom C = de gemiddelde dagtemperatuur
B42: LOGICA: | C42: Als de dagtemperatuur groter is dan 5 °C; dan is de waarde "de dagtemperatuur minus 5"; anders is de waarde "0"
A44: 2.2. | B44: Binnen | C44: Ga naar blad "Binnentemperatuur'
C45: Volg dezelfde stappen van berekening als voor de buitentemperatuur
A49: STAP 3 | C49: Geef je observaties in
A51: Neem het document waar je al je observaties van de teostand van de bladknoppen in hebt bijgehouden.
A52: Ga naar blad "voorbeeld Es" en maak een gelijkaardig blad voor jouw observaties
B53: cel "A1" tot "C13" | D53: Geef de specificaties is van je boom
B54: cel "B5" tot "D5" | D54: Maak een kolom voor elke twijg geknipt op de opeenvolgende knipdagen
B55: cel "B6" tot "D6" | D55: Geef de fenologiescore in voor deze twijg op van deze knipdag
A59: STAP 4 | C59: Waardes per twijg
A60: 1. CHILLING
B61: FORMULE: | C61: Ga naar blad "Voorbeeld es'
C62: Kijk naar cel "B31"
C63: =SOM( Buitentemperatuur!Dx:Dy )
B65: LOGICA: | C65: Een optelling van het aantal dagen dat de gemiddelde dagtemperatuur buiten tussen 0 °C en 8 °C was tussen de start van het experiment en het knippen van de twijg.
A68: 2. FORCING
A70: 2.1. | B70: Buiten
B71: FORMULE: | C71: Ga naar blad "Voorbeeld es'
C72: Kijk naar cel "B32"
C73: =SOM( Buitentemperatuur!Ex:Ey )
B75: LOGICA: | C75: Een optelling van de buiten-dagtemperaturen minus 5 indien deze niet negatief waren, voor de periode dat de twijg nog aan de boom hing.
A78: 2.2. | B78: Binnen
C79: Ga naar blad "Voorbeeld es'
C80: Kijk naar cel "B33"
C81: =SOM( Binnentemperatuur!Dx:Dy )
B83: LOGICA: | C83: Een optelling van de binnen-dagtemperaturen minus 5 indien deze niet negatief waren,
C84: voor de periode dat de twijg binnen in een vaas stond tot het uitlopen van de bladknoppen (fase 2 van de Knappe Knoppenschaal).
C85: Voor de twijgen waarbij de bladknoppen niet uitliepen, kan je dit niet berekenen (in Excel wordt dit aangeduid met NA).
A87: 2.3. | B87: Totale forcing
C88: Ga naar blad "Voorbeeld es'
C89: Kijk naar cel "B34"
C90: = X32 + X33
B92: LOGICA: | C92: Een optelling van de forcing buiten en forcing binnen. Dit is de totale hoeveelheid forcing die de twijg ondervond voordat zijn bladknoppen uitliepen.
C93: Voor de twijgen waarbij de bladknoppen niet uitliepen, kan je dit niet berekenen (in Excel wordt dit aangeduid met NA).
A95: 2.4. | B95: Gemiddelde forcing
C96: Ga naar blad "Voorbeeld es'
C97: Kijk naar cel "B35"
C98: =GEMIDDELDE( X34;Y34;Z34 )
B100: LOGICA: | C100: Een gemiddelde van de totale forcings van de twijgen die op hetzelfde moment geknipt werden.
C101: Voor de twijgen waarbij de bladknoppen niet uitliepen, kan je dit niet berekenen (in Excel wordt dit aangeduid met NA).
A106: STAP 5 | C106: Resultaat
A108: Maak per boom een grafiek met
B109: in de X-as in chronologische volgorde de knipdatum van elke twijg
B110: in de Y-as de gemiddelde totale forcing die de twijgen buiten en binnen ondervonden
A111: Vind je een overgang tussen endodormancy en ecodormancy?
B112: Dit wordt in de figuur zichtbaar als het moment dat de bladknoppen opvallend minder growing degree days nodig hadden om uit te lopen
B113: Ze zijn gevoeliger voor warmte.
A114: Duidt de overgang aan indien je hem vindt.
B115: Voorbeeld van grafiek in blad "Resultaat"

Sheet Binnentemperatuur
A1: BINNENTEMPERATUUR
A2: stap 1.1 | C2: stap 1.2 | D2: stap 2.2
A3: datum | B3: temperatuur | C3: gemiddelde dagtemperatuur | D3: FORCING
A4: (jaar.maand.dag uur:minuut) | B4: (°C) | C4: (°C) | D4: (growing degree days)
A5: 2020.11.19 00:00 | B5: 18 | C5: =AVERAGE(B5:B100) -> 17.984375 | D5: =IF(SUM(C5-5)>0,(SUM(C5-5)),0) -> 12.984375
A6: 2020.11.19 00:15 | B6: 17.875
A7: 2020.11.19 00:30 | B7: 17.875
A8: 2020.11.19 00:45 | B8: 17.75
A9: 2020.11.19 01:00 | B9: 17.75
A10: 2020.11.19 01:15 | B10: 17.6875
A11: 2020.11.19 01:30 | B11: 17.625
A12: 2020.11.19 01:45 | B12: 17.625
A13: 2020.11.19 02:00 | B13: 17.5
A14: 2020.11.19 02:15 | B14: 17.5
A15: 2020.11.19 02:30 | B15: 17.4375
A16: 2020.11.19 02:45 | B16: 17.375
A17: 2020.11.19 03:00 | B17: 17.375
A18: 2020.11.19 03:15 | B18: 17.3125
A19: 2020.11.19 03:30 | B19: 17.25
A20: 2020.11.19 03:45 | B20: 17.1875
A21: 2020.11.19 04:00 | B21: 17.125
A22: 2020.11.19 04:15 | B22: 17.125
A23: 2020.11.19 04:30 | B23: 17
A24: 2020.11.19 04:45 | B24: 17
A25: 2020.11.19 05:00 | B25: 17
A26: 2020.11.19 05:15 | B26: 16.9375
A27: 2020.11.19 05:30 | B27: 16.875
A28: 2020.11.19 05:45 | B28: 16.875
A29: 2020.11.19 06:00 | B29: 16.875
A30: 2020.11.19 06:15 | B30: 17.125
A31: 2020.11.19 06:30 | B31: 18
A32: 2020.11.19 06:45 | B32: 18.3125
A33: 2020.11.19 07:00 | B33: 18.4375
A34: 2020.11.19 07:15 | B34: 18.5
A35: 2020.11.19 07:30 | B35: 18.4375
A36: 2020.11.19 07:45 | B36: 18.5
A37: 2020.11.19 08:00 | B37: 18.5
A38: 2020.11.19 08:15 | B38: 18.375
A39: 2020.11.19 08:30 | B39: 18.375
A40: 2020.11.19 08:45 | B40: 18.25
A41: 2020.11.19 09:00 | B41: 18.375
A42: 2020.11.19 09:15 | B42: 18.5
A43: 2020.11.19 09:30 | B43: 18.625
A44: 2020.11.19 09:45 | B44: 18.625
A45: 2020.11.19 10:00 | B45: 18.625
A46: 2020.11.19 10:15 | B46: 18.875
A47: 2020.11.19 10:30 | B47: 18.5
A48: 2020.11.19 10:45 | B48: 18.25
A49: 2020.11.19 11:00 | B49: 18.25
A50: 2020.11.19 11:15 | B50: 18.0625
A51: 2020.11.19 11:30 | B51: 18.25
A52: 2020.11.19 11:45 | B52: 18.375
A53: 2020.11.19 12:00 | B53: 18.4375
A54: 2020.11.19 12:15 | B54: 18.6875
A55: 2020.11.19 12:30 | B55: 19
A56: 2020.11.19 12:45 | B56: 18.75
A57: 2020.11.19 13:00 | B57: 18.625
A58: 2020.11.19 13:15 | B58: 18.75
A59: 2020.11.19 13:30 | B59: 18.75
A60: 2020.11.19 13:45 | B60: 18.625
A61: 2020.11.19 14:00 | B61: 18.75
A62: 2020.11.19 14:15 | B62: 18.6875
A63: 2020.11.19 14:30 | B63: 18.75
A64: 2020.11.19 14:45 | B64: 18.6875
A65: 2020.11.19 15:00 | B65: 18.6875
A66: 2020.11.19 15:15 | B66: 18.75
A67: 2020.11.19 15:30 | B67: 18.6875
A68: 2020.11.19 15:45 | B68: 18.625
A69: 2020.11.19 16:00 | B69: 18.625
A70: 2020.11.19 16:15 | B70: 18.5625
A71: 2020.11.19 16:30 | B71: 18.5
A72: 2020.11.19 16:45 | B72: 18.375
A73: 2020.11.19 17:00 | B73: 18.375
A74: 2020.11.19 17:15 | B74: 18.375
A75: 2020.11.19 17:30 | B75: 18.375
A76: 2020.11.19 17:45 | B76: 18.25
A77: 2020.11.19 18:00 | B77: 18.125
A78: 2020.11.19 18:15 | B78: 18.125
A79: 2020.11.19 18:30 | B79: 18.125
A80: 2020.11.19 18:45 | B80: 17.875
A81: 2020.11.19 19:00 | B81: 17.875
A82: 2020.11.19 19:15 | B82: 18
A83: 2020.11.19 19:30 | B83: 17.8125
A84: 2020.11.19 19:45 | B84: 17.625
A85: 2020.11.19 20:00 | B85: 17.5625
A86: 2020.11.19 20:15 | B86: 17.75
A87: 2020.11.19 20:30 | B87: 17.75
A88: 2020.11.19 20:45 | B88: 17.75
A89: 2020.11.19 21:00 | B89: 17.875
A90: 2020.11.19 21:15 | B90: 17.875
A91: 2020.11.19 21:30 | B91: 17.875
A92: 2020.11.19 21:45 | B92: 17.8125
A93: 2020.11.19 22:00 | B93: 17.625
A94: 2020.11.19 22:15 | B94: 17.5
A95: 2020.11.19 22:30 | B95: 17.375
A96: 2020.11.19 22:45 | B96: 17.25
A97: 2020.11.19 23:00 | B97: 17.125
A98: 2020.11.19 23:15 | B98: 17.125
A99: 2020.11.19 23:30 | B99: 17
A100: 2020.11.19 23:45 | B100: 16.9375
A101: 2020.11.20 00:00 | B101: 16.875 | C101: =AVERAGE(B101:B196) -> 19.31184896 | D101: =IF(SUM(C101-5)>0,(SUM(C101-5)),0) -> 14.31184896
A102: 2020.11.20 00:15 | B102: 16.875
A103: 2020.11.20 00:30 | B103: 16.8125
A104: 2020.11.20 00:45 | B104: 16.75
A105: 2020.11.20 01:00 | B105: 16.75
A106: 2020.11.20 01:15 | B106: 16.6875
A107: 2020.11.20 01:30 | B107: 16.625
A108: 2020.11.20 01:45 | B108: 16.625
A109: 2020.11.20 02:00 | B109: 16.625
A110: 2020.11.20 02:15 | B110: 16.5
A111: 2020.11.20 02:30 | B111: 16.5
A112: 2020.11.20 02:45 | B112: 16.375
A113: 2020.11.20 03:00 | B113: 16.3125
A114: 2020.11.20 03:15 | B114: 16.25
A115: 2020.11.20 03:30 | B115: 16.1875
A116: 2020.11.20 03:45 | B116: 16.125
A117: 2020.11.20 04:00 | B117: 16.125
A118: 2020.11.20 04:15 | B118: 16.125
A119: 2020.11.20 04:30 | B119: 16.0625
A120: 2020.11.20 04:45 | B120: 16
A121: 2020.11.20 05:00 | B121: 16
A122: 2020.11.20 05:15 | B122: 16
A123: 2020.11.20 05:30 | B123: 16
A124: 2020.11.20 05:45 | B124: 16
A125: 2020.11.20 06:00 | B125: 15.9375
A126: 2020.11.20 06:15 | B126: 16.125
A127: 2020.11.20 06:30 | B127: 17.0625
A128: 2020.11.20 06:45 | B128: 17.6875
A129: 2020.11.20 07:00 | B129: 17.875
A130: 2020.11.20 07:15 | B130: 18.0625
A131: 2020.11.20 07:30 | B131: 18
A132: 2020.11.20 07:45 | B132: 20.625
A133: 2020.11.20 08:00 | B133: 21.9375
A134: 2020.11.20 08:15 | B134: 22.375
A135: 2020.11.20 08:30 | B135: 22.375
A136: 2020.11.20 08:45 | B136: 22.5
A137: 2020.11.20 09:00 | B137: 22.5
A138: 2020.11.20 09:15 | B138: 22.25
A139: 2020.11.20 09:30 | B139: 22.5
A140: 2020.11.20 09:45 | B140: 22.375
A141: 2020.11.20 10:00 | B141: 22.4375
A142: 2020.11.20 10:15 | B142: 22.4375
A143: 2020.11.20 10:30 | B143: 22.375
A144: 2020.11.20 10:45 | B144: 22.375
A145: 2020.11.20 11:00 | B145: 22.4375
A146: 2020.11.20 11:15 | B146: 22.375
A147: 2020.11.20 11:30 | B147: 21.9375
A148: 2020.11.20 11:45 | B148: 21.5
A149: 2020.11.20 12:00 | B149: 21.25
A150: 2020.11.20 12:15 | B150: 21.25
A151: 2020.11.20 12:30 | B151: 21.25
A152: 2020.11.20 12:45 | B152: 21.5
A153: 2020.11.20 13:00 | B153: 21.5625
A154: 2020.11.20 13:15 | B154: 21.75
A155: 2020.11.20 13:30 | B155: 21.625
A156: 2020.11.20 13:45 | B156: 21.75
A157: 2020.11.20 14:00 | B157: 21.0625
A158: 2020.11.20 14:15 | B158: 21.5
A159: 2020.11.20 14:30 | B159: 21.625
A160: 2020.11.20 14:45 | B160: 20.9375
A161: 2020.11.20 15:00 | B161: 21.125
A162: 2020.11.20 15:15 | B162: 21
A163: 2020.11.20 15:30 | B163: 20.75
A164: 2020.11.20 15:45 | B164: 20.625
A165: 2020.11.20 16:00 | B165: 20.3125
A166: 2020.11.20 16:15 | B166: 20.125
A167: 2020.11.20 16:30 | B167: 20.75
A168: 2020.11.20 16:45 | B168: 21
A169: 2020.11.20 17:00 | B169: 20.1875
A170: 2020.11.20 17:15 | B170: 20.4375
A171: 2020.11.20 17:30 | B171: 20.3125
A172: 2020.11.20 17:45 | B172: 20
A173: 2020.11.20 18:00 | B173: 19.9375
A174: 2020.11.20 18:15 | B174: 20.4375
A175: 2020.11.20 18:30 | B175: 20.125
A176: 2020.11.20 18:45 | B176: 19.375
A177: 2020.11.20 19:00 | B177: 19.625
A178: 2020.11.20 19:15 | B178: 19.75
A179: 2020.11.20 19:30 | B179: 20.25
A180: 2020.11.20 19:45 | B180: 20.5
A181: 2020.11.20 20:00 | B181: 20.625
A182: 2020.11.20 20:15 | B182: 20.625
A183: 2020.11.20 20:30 | B183: 20.4375
A184: 2020.11.20 20:45 | B184: 20.1875
A185: 2020.11.20 21:00 | B185: 19.75
A186: 2020.11.20 21:15 | B186: 19.625
A187: 2020.11.20 21:30 | B187: 19.625
A188: 2020.11.20 21:45 | B188: 18.875
A189: 2020.11.20 22:00 | B189: 20.3125
A190: 2020.11.20 22:15 | B190: 18.5
A191: 2020.11.20 22:30 | B191: 17.375
A192: 2020.11.20 22:45 | B192: 17
A193: 2020.11.20 23:00 | B193: 16.75
A194: 2020.11.20 23:15 | B194: 16.5625
A195: 2020.11.20 23:30 | B195: 16.375
A196: 2020.11.20 23:45 | B196: 16.375
A197: 2020.11.21 00:00 | B197: 16.25 | C197: =AVERAGE(B197:B292) -> 19.72265625 | D197: =IF(SUM(C197-5)>0,(SUM(C197-5)),0) -> 14.72265625
A198: 2020.11.21 00:15 | B198: 16.1875
A199: 2020.11.21 00:30 | B199: 16.125
A200: 2020.11.21 00:45 | B200: 16.125
... 15260 more rows

Sheet Buitentemperatuur
A1: BUITENTEMPERATUUR
A2: stap 1.1 | C2: stap 1.2 | D2: stap 2.1 | E2: stap 2.2
A3: datum | B3: temperatuur | C3: gemiddelde dagtemperatuur | D3: CHILLING | E3: FORCING
D4: temperatuur tussen 0 en 8?
A5: (jaar.maand.dag uur:minuut) | B5: (°C) | C5: (°C) | D5: (ja = 1; nee = 0) | E5: (growing degree days)
A6: 2020.11.19 00:00 | B6: 9.875 | C6: =AVERAGE(B6:B101) -> 6.638020833 | D6: =IF(AND(C6>0,(C6<8)),1,0) -> 1 | E6: =IF(SUM(C6-5)>0,(SUM(C6-5)),0) -> 1.638020833
A7: 2020.11.19 00:15 | B7: 10.375
A8: 2020.11.19 00:30 | B8: 10.625
A9: 2020.11.19 00:45 | B9: 10.5625
A10: 2020.11.19 01:00 | B10: 10.375
A11: 2020.11.19 01:15 | B11: 9.875
A12: 2020.11.19 01:30 | B12: 8.625
A13: 2020.11.19 01:45 | B13: 8.125
A14: 2020.11.19 02:00 | B14: 8
A15: 2020.11.19 02:15 | B15: 7.6875
A16: 2020.11.19 02:30 | B16: 7.75
A17: 2020.11.19 02:45 | B17: 8
A18: 2020.11.19 03:00 | B18: 7.75
A19: 2020.11.19 03:15 | B19: 7.75
A20: 2020.11.19 03:30 | B20: 7.375
A21: 2020.11.19 03:45 | B21: 7
A22: 2020.11.19 04:00 | B22: 7.25
A23: 2020.11.19 04:15 | B23: 7.125
A24: 2020.11.19 04:30 | B24: 7.25
A25: 2020.11.19 04:45 | B25: 7
A26: 2020.11.19 05:00 | B26: 6.9375
A27: 2020.11.19 05:15 | B27: 6.75
A28: 2020.11.19 05:30 | B28: 6.9375
A29: 2020.11.19 05:45 | B29: 7.375
A30: 2020.11.19 06:00 | B30: 7.125
A31: 2020.11.19 06:15 | B31: 7.375
A32: 2020.11.19 06:30 | B32: 8.0625
A33: 2020.11.19 06:45 | B33: 7.25
A34: 2020.11.19 07:00 | B34: 7.3125
A35: 2020.11.19 07:15 | B35: 7.25
A36: 2020.11.19 07:30 | B36: 7.5
A37: 2020.11.19 07:45 | B37: 7.625
A38: 2020.11.19 08:00 | B38: 7.875
A39: 2020.11.19 08:15 | B39: 8.125
A40: 2020.11.19 08:30 | B40: 8.4375
A41: 2020.11.19 08:45 | B41: 8.625
A42: 2020.11.19 09:00 | B42: 8.625
A43: 2020.11.19 09:15 | B43: 8.875
A44: 2020.11.19 09:30 | B44: 9.125
A45: 2020.11.19 09:45 | B45: 8.8125
A46: 2020.11.19 10:00 | B46: 8.875
A47: 2020.11.19 10:15 | B47: 9.5
A48: 2020.11.19 10:30 | B48: 8.75
A49: 2020.11.19 10:45 | B49: 8.875
A50: 2020.11.19 11:00 | B50: 9.875
A51: 2020.11.19 11:15 | B51: 9.375
A52: 2020.11.19 11:30 | B52: 9.875
A53: 2020.11.19 11:45 | B53: 9.875
A54: 2020.11.19 12:00 | B54: 9.625
A55: 2020.11.19 12:15 | B55: 10.1875
A56: 2020.11.19 12:30 | B56: 10.625
A57: 2020.11.19 12:45 | B57: 9.1875
A58: 2020.11.19 13:00 | B58: 8.625
A59: 2020.11.19 13:15 | B59: 9.125
A60: 2020.11.19 13:30 | B60: 9.125
A61: 2020.11.19 13:45 | B61: 8.625
A62: 2020.11.19 14:00 | B62: 9
A63: 2020.11.19 14:15 | B63: 8.75
A64: 2020.11.19 14:30 | B64: 8.625
A65: 2020.11.19 14:45 | B65: 8.5
A66: 2020.11.19 15:00 | B66: 8.1875
A67: 2020.11.19 15:15 | B67: 7.25
A68: 2020.11.19 15:30 | B68: 7.25
A69: 2020.11.19 15:45 | B69: 6.625
A70: 2020.11.19 16:00 | B70: 5.75
A71: 2020.11.19 16:15 | B71: 6.5625
A72: 2020.11.19 16:30 | B72: 7.25
A73: 2020.11.19 16:45 | B73: 6.125
A74: 2020.11.19 17:00 | B74: 4.4375
A75: 2020.11.19 17:15 | B75: 3.375
A76: 2020.11.19 17:30 | B76: 2.625
A77: 2020.11.19 17:45 | B77: 2.0625
A78: 2020.11.19 18:00 | B78: 1.875
A79: 2020.11.19 18:15 | B79: 2.25
A80: 2020.11.19 18:30 | B80: 1.6875
A81: 2020.11.19 18:45 | B81: 1.25
A82: 2020.11.19 19:00 | B82: 1
A83: 2020.11.19 19:15 | B83: 0.875
A84: 2020.11.19 19:30 | B84: 0.875
A85: 2020.11.19 19:45 | B85: 0.875
A86: 2020.11.19 20:00 | B86: 1.75
A87: 2020.11.19 20:15 | B87: 0.6875
A88: 2020.11.19 20:30 | B88: 0.125
A89: 2020.11.19 20:45 | B89: 0.875
A90: 2020.11.19 21:00 | B90: 2.75
A91: 2020.11.19 21:15 | B91: 3.375
A92: 2020.11.19 21:30 | B92: 3.3125
A93: 2020.11.19 21:45 | B93: 4.125
A94: 2020.11.19 22:00 | B94: 4.5
A95: 2020.11.19 22:15 | B95: 4.25
A96: 2020.11.19 22:30 | B96: 3.5
A97: 2020.11.19 22:45 | B97: 3.6875
A98: 2020.11.19 23:00 | B98: 3.875
A99: 2020.11.19 23:15 | B99: 4.25
A100: 2020.11.19 23:30 | B100: 4.125
A101: 2020.11.19 23:45 | B101: 4.5
A102: 2020.11.20 00:00 | B102: 4.75 | C102: =AVERAGE(B102:B197) -> 2.744140625 | D102: =IF(AND(C102>0,(C102<8)),1,0) -> 1 | E102: =IF(SUM(C102-5)>0,(SUM(C102-5)),0) -> 0
A103: 2020.11.20 00:15 | B103: 4.875
A104: 2020.11.20 00:30 | B104: 4.8125
A105: 2020.11.20 00:45 | B105: 4.875
A106: 2020.11.20 01:00 | B106: 5
A107: 2020.11.20 01:15 | B107: 4
A108: 2020.11.20 01:30 | B108: 4.875
A109: 2020.11.20 01:45 | B109: 5.25
A110: 2020.11.20 02:00 | B110: 5.1875
A111: 2020.11.20 02:15 | B111: 2.875
A112: 2020.11.20 02:30 | B112: 1.625
A113: 2020.11.20 02:45 | B113: 1
A114: 2020.11.20 03:00 | B114: 0.625
A115: 2020.11.20 03:15 | B115: 1.25
A116: 2020.11.20 03:30 | B116: 2.5625
A117: 2020.11.20 03:45 | B117: 3.625
A118: 2020.11.20 04:00 | B118: 3
A119: 2020.11.20 04:15 | B119: 2.625
A120: 2020.11.20 04:30 | B120: 3.5
A121: 2020.11.20 04:45 | B121: 3.8125
A122: 2020.11.20 05:00 | B122: 4
A123: 2020.11.20 05:15 | B123: 3.5
A124: 2020.11.20 05:30 | B124: 3.875
A125: 2020.11.20 05:45 | B125: 4.0625
A126: 2020.11.20 06:00 | B126: 4.125
A127: 2020.11.20 06:15 | B127: 3.25
A128: 2020.11.20 06:30 | B128: 2.625
A129: 2020.11.20 06:45 | B129: 1.5
A130: 2020.11.20 07:00 | B130: 0.5
A131: 2020.11.20 07:15 | B131: -0.125
A132: 2020.11.20 07:30 | B132: -0.25
A133: 2020.11.20 07:45 | B133: 0.125
A134: 2020.11.20 08:00 | B134: 0.5
A135: 2020.11.20 08:15 | B135: 1
A136: 2020.11.20 08:30 | B136: 1.875
A137: 2020.11.20 08:45 | B137: 1.875
A138: 2020.11.20 09:00 | B138: 2.375
A139: 2020.11.20 09:15 | B139: 2.75
A140: 2020.11.20 09:30 | B140: 4.625
A141: 2020.11.20 09:45 | B141: 3.8125
A142: 2020.11.20 10:00 | B142: 3.375
A143: 2020.11.20 10:15 | B143: 3.5
A144: 2020.11.20 10:30 | B144: 4
A145: 2020.11.20 10:45 | B145: 4.6875
A146: 2020.11.20 11:00 | B146: 5.0625
A147: 2020.11.20 11:15 | B147: 5.5
A148: 2020.11.20 11:30 | B148: 5.6875
A149: 2020.11.20 11:45 | B149: 6.375
A150: 2020.11.20 12:00 | B150: 6.875
A151: 2020.11.20 12:15 | B151: 6.625
A152: 2020.11.20 12:30 | B152: 6.5
A153: 2020.11.20 12:45 | B153: 7.125
A154: 2020.11.20 13:00 | B154: 6.6875
A155: 2020.11.20 13:15 | B155: 7.375
A156: 2020.11.20 13:30 | B156: 7.125
A157: 2020.11.20 13:45 | B157: 7.25
A158: 2020.11.20 14:00 | B158: 7.125
A159: 2020.11.20 14:15 | B159: 6.5
A160: 2020.11.20 14:30 | B160: 6.25
A161: 2020.11.20 14:45 | B161: 6
A162: 2020.11.20 15:00 | B162: 5.8125
A163: 2020.11.20 15:15 | B163: 4.5
A164: 2020.11.20 15:30 | B164: 3
A165: 2020.11.20 15:45 | B165: 1.875
A166: 2020.11.20 16:00 | B166: 1.5
A167: 2020.11.20 16:15 | B167: 1.25
A168: 2020.11.20 16:30 | B168: 0.5625
A169: 2020.11.20 16:45 | B169: 0.375
A170: 2020.11.20 17:00 | B170: 0.25
A171: 2020.11.20 17:15 | B171: -0.25
A172: 2020.11.20 17:30 | B172: 0.0625
A173: 2020.11.20 17:45 | B173: 0.0625
A174: 2020.11.20 18:00 | B174: -0.125
A175: 2020.11.20 18:15 | B175: -0.375
A176: 2020.11.20 18:30 | B176: -0.3125
A177: 2020.11.20 18:45 | B177: -0.625
A178: 2020.11.20 19:00 | B178: -0.625
A179: 2020.11.20 19:15 | B179: -0.8125
A180: 2020.11.20 19:30 | B180: -0.6875
A181: 2020.11.20 19:45 | B181: -0.5625
A182: 2020.11.20 20:00 | B182: -0.5
A183: 2020.11.20 20:15 | B183: -0.4375
A184: 2020.11.20 20:30 | B184: -0.5
A185: 2020.11.20 20:45 | B185: -0.6875
A186: 2020.11.20 21:00 | B186: -0.5
A187: 2020.11.20 21:15 | B187: 0.125
A188: 2020.11.20 21:30 | B188: 0.875
A189: 2020.11.20 21:45 | B189: 1.5
A190: 2020.11.20 22:00 | B190: 1.875
A191: 2020.11.20 22:15 | B191: 1.625
A192: 2020.11.20 22:30 | B192: 1.6875
A193: 2020.11.20 22:45 | B193: 1.25
A194: 2020.11.20 23:00 | B194: 1.25
A195: 2020.11.20 23:15 | B195: 1.625
A196: 2020.11.20 23:30 | B196: 1.375
A197: 2020.11.20 23:45 | B197: 2.25
A198: 2020.11.21 00:00 | B198: 2.9375 | C198: =AVERAGE(B198:B293) -> 7.587239583 | D198: =IF(AND(C198>0,(C198<8)),1,0) -> 1 | E198: =IF(SUM(C198-5)>0,(SUM(C198-5)),0) -> 2.587239583
A199: 2020.11.21 00:15 | B199: 2.8125
A200: 2020.11.21 00:30 | B200: 3.25
... 15261 more rows

Sheet Voorbeeld es
A1: Mijn boom is een es
A2: Mijn boom is ongeveer 16 meter hoog
A3: Ik zal zijn takken op ooghoogte afknippen
A5: datum \ naam tak | B5: 25/11A | C5: 25/11B | D5: 25/11C | E5: 9/12A | F5: 9/12B | G5: 9/12C | H5: 23/12A | I5: 23/12B | J5: 23/12C | K5: 6/01A | L5: 6/01B | M5: 6/01C | N5: 20/01A | O5: 20/01B | P5: 20/01C | Q5: 3/02A | R5: 3/02B | S5: 3/02C | T5: 17/02A | U5: 17/02B | V5: 17/02C | W5: 03/03A | X5: 03/03B | Y5: 03/03C | Z5: 17/03A | AA5: 17/03B | AB5: 17/03C | AC5: 31/03A | AD5: 31/03B | AE5: 31/03C | AF5: 14/04A | AG5: 14/04B | AH5: 14/04C
A6: 2021-11-25 | B6: 0 | C6: 0 | D6: 0
A7: 2021-12-02 | B7: 0 | C7: 0 | D7: 0 | K7: Knappe-knoppen-schaal: 0, 1, 2
A8: 2021-12-09 | B8: 0 | C8: 0 | D8: 0 | E8: 0 | F8: 0 | G8: 0
A9: 2021-12-16 | B9: 0 | C9: 0 | D9: 0 | E9: 0 | F9: 0 | G9: 0
A10: 2021-12-23 | B10: 0 | C10: 0 | D10: 0 | E10: 0 | F10: 0 | G10: 0 | H10: 0 | I10: 0 | J10: 0
A11: 2021-12-30 | B11: 0 | C11: 0 | D11: 0 | E11: 0 | F11: 0 | G11: 0 | H11: 0 | I11: 0 | J11: 0
A12: 2022-01-06 | B12: 0 | C12: 0 | D12: 0 | E12: 0 | F12: 0 | G12: 0 | H12: 0 | I12: 0 | J12: 0 | K12: 0 | L12: 0 | M12: 0
A13: 2022-01-13 | B13: 0 | C13: 0 | D13: 0 | E13: 0 | F13: 0 | G13: 0 | H13: 0 | I13: 0 | J13: 0 | K13: 0 | L13: 0 | M13: 0
A14: 2022-01-20 | B14: 0 | C14: 0 | D14: 0 | E14: 0 | F14: 0 | G14: 0 | H14: 0 | I14: 0 | J14: 0 | K14: 0 | L14: 0 | M14: 0 | N14: 0 | O14: 0 | P14: 0
A15: 2022-01-27 | B15: 0 | C15: 0 | D15: 0 | E15: 0 | F15: 0 | G15: 0 | H15: 0 | I15: 0 | J15: 0 | K15: 0 | L15: 0 | M15: 0 | N15: 0 | O15: 0 | P15: 0
A16: 2022-02-03 | B16: 0 | C16: 0 | D16: 0 | E16: 0 | F16: 0 | G16: 0 | H16: 0 | I16: 0 | J16: 0 | K16: 0 | L16: 0 | M16: 0 | N16: 0 | O16: 0 | P16: 0 | Q16: 0 | R16: 0 | S16: 0
A17: 2022-02-10 | B17: 0 | C17: 0 | D17: 0 | E17: 0 | F17: 0 | G17: 0 | H17: 0 | I17: 0 | J17: 0 | K17: 0 | L17: 0 | M17: 0 | N17: 0 | O17: 0 | P17: 0 | Q17: 0 | R17: 0 | S17: 0
A18: 2022-02-17 | B18: 0 | C18: 0 | D18: 0 | E18: 0 | F18: 0 | G18: 0 | H18: 0 | I18: 0 | J18: 0 | K18: 0 | L18: 0 | M18: 0 | N18: 0 | O18: 0 | P18: 0 | Q18: 0 | R18: 0 | S18: 0 | T18: 0 | U18: 0 | V18: 0
A19: 2022-02-24 | B19: 0 | C19: 0 | D19: 0 | E19: 0 | F19: 0 | G19: 0 | H19: 0 | I19: 0 | J19: 0 | K19: 0 | L19: 0 | M19: 0 | N19: 0 | O19: 1 | P19: 1 | Q19: 0 | R19: 0 | S19: 0 | T19: 0 | U19: 0 | V19: 0
A20: 2022-03-03 | B20: 0 | C20: 0 | D20: 0 | E20: 0 | F20: 1 | G20: 0 | H20: 1 | I20: 1 | J20: 0 | K20: 1 | L20: 0 | M20: 0 | N20: 0 | O20: 1 | P20: 1 | Q20: 1 | R20: 1 | S20: 1 | T20: 0 | U20: 0 | V20: 0 | W20: 0 | X20: 0 | Y20: 0
A21: 2022-03-10 | B21: 0 | C21: 0 | D21: 0 | E21: 0 | F21: 1 | G21: 0 | H21: 2 | I21: 2 | J21: 1 | K21: 1 | L21: 0 | M21: 0 | N21: 0 | O21: 1 | P21: 1 | Q21: 1 | R21: 1 | S21: 1 | T21: 0 | U21: 0 | V21: 0 | W21: 0 | X21: 0 | Y21: 0
A22: 2022-03-17 | B22: 0 | C22: 0 | D22: 0 | E22: 0 | F22: 1 | G22: 0 | H22: 2 | I22: 2 | J22: 1 | K22: 1 | L22: 0 | M22: 1 | N22: 0 | O22: 1 | P22: 1 | Q22: 1 | R22: 1 | S22: 1 | T22: 0 | U22: 0 | V22: 0 | W22: 0 | X22: 0 | Y22: 0 | Z22: 0 | AA22: 0 | AB22: 0
A23: 2022-03-24 | B23: 0 | C23: 0 | D23: 0 | E23: 1 | F23: 1 | G23: 1 | H23: 2 | I23: 2 | J23: 2 | K23: 2 | L23: 1 | M23: 1 | N23: 0 | O23: 1 | P23: 1 | Q23: 2 | R23: 2 | S23: 1 | T23: 1 | U23: 1 | V23: 1 | W23: 0 | X23: 0 | Y23: 0 | Z23: 0 | AA23: 0 | AB23: 0
A24: 2022-03-31 | B24: 0 | C24: 0 | D24: 0 | E24: 1 | F24: 1 | G24: 1 | H24: 2 | I24: 2 | J24: 2 | K24: 2 | L24: 2 | M24: 2 | N24: 0 | O24: 1 | P24: 1 | Q24: 2 | R24: 2 | S24: 2 | T24: 2 | U24: 2 | V24: 2 | W24: 0 | X24: 0 | Y24: 0 | Z24: 0 | AA24: 0 | AB24: 0 | AC24: 0 | AD24: 0 | AE24: 0
A25: 2022-04-07 | B25: 0 | C25: 0 | D25: 0 | E25: 2 | F25: 2 | G25: 2 | H25: 2 | I25: 2 | J25: 2 | K25: 2 | L25: 2 | M25: 2 | N25: 0 | O25: 1 | P25: 1 | Q25: 2 | R25: 2 | S25: 2 | T25: 2 | U25: 2 | V25: 2 | W25: 1 | X25: 1 | Y25: 1 | Z25: 1 | AA25: 1 | AB25: 1 | AC25: 1 | AD25: 1 | AE25: 1
A26: 2022-04-14 | B26: 0 | C26: 0 | D26: 0 | E26: 2 | F26: 2 | G26: 2 | H26: 2 | I26: 2 | J26: 2 | K26: 2 | L26: 2 | M26: 2 | N26: 0 | O26: 2 | P26: 1 | Q26: 2 | R26: 2 | S26: 2 | T26: 2 | U26: 2 | V26: 2 | W26: 1 | X26: 1 | Y26: 1 | Z26: 1 | AA26: 1 | AB26: 1 | AC26: 2 | AD26: 2 | AE26: 2 | AF26: 0 | AG26: 0 | AH26: 0
A27: 2022-04-21 | B27: 0 | C27: 0 | D27: 0 | E27: 2 | F27: 2 | G27: 2 | H27: 2 | I27: 2 | J27: 2 | K27: 2 | L27: 2 | M27: 2 | N27: 0 | O27: 2 | P27: 2 | Q27: 2 | R27: 2 | S27: 2 | T27: 2 | U27: 2 | V27: 2 | W27: 2 | X27: 2 | Y27: 2 | Z27: 2 | AA27: 2 | AB27: 2 | AC27: 2 | AD27: 2 | AE27: 2 | AF27: 2 | AG27: 2 | AH27: 2
A28: 2022-04-28 | B28: 0 | C28: 0 | D28: 0 | E28: 2 | F28: 2 | G28: 2 | H28: 2 | I28: 2 | J28: 2 | K28: 2 | L28: 2 | M28: 2 | N28: 0 | O28: 2 | P28: 2 | Q28: 2 | R28: 2 | S28: 2 | T28: 2 | U28: 2 | V28: 2 | W28: 2 | X28: 2 | Y28: 2 | Z28: 2 | AA28: 2 | AB28: 2 | AC28: 2 | AD28: 2 | AE28: 2 | AF28: 2 | AG28: 2 | AH28: 2
A30: datum knippen twijgen: | B30: 2020-11-25 | E30: 2020-12-09 | H30: 2020-12-23 | K30: 2021-01-06 | N30: 2021-01-20 | Q30: 2021-02-03 | T30: 2021-02-17 | W30: 2021-03-03 | Z30: 2021-03-17 | AC30: 2021-03-31 | AF30: 2021-04-14
A31: chilling? : | B31: =SUM(Buitentemperatuur!D2:D577) -> 5 | C31: =SUM(Buitentemperatuur!D2:D577) -> 5 | D31: =SUM(Buitentemperatuur!D2:D577) -> 5 | E31: =SUM(Buitentemperatuur!D2:D1921) -> 17 | F31: =SUM(Buitentemperatuur!D2:D1921) -> 17 | G31: =SUM(Buitentemperatuur!D2:D1921) -> 17 | H31: =SUM(Buitentemperatuur!D2:D3265) -> 29 | I31: =SUM(Buitentemperatuur!D2:D3265) -> 29 | J31: =SUM(Buitentemperatuur!D2:D3265) -> 29 | K31: =SUM(Buitentemperatuur!D2:D4609) -> 41 | L31: =SUM(Buitentemperatuur!D2:D4609) -> 41 | M31: =SUM(Buitentemperatuur!D2:D4609) -> 41 | N31: =SUM(Buitentemperatuur!D2:D5953) -> 51 | O31: =SUM(Buitentemperatuur!D2:D5953) -> 51 | P31: =SUM(Buitentemperatuur!D2:D5953) -> 51 | Q31: =SUM(Buitentemperatuur!D2:D7297) -> 63 | R31: =SUM(Buitentemperatuur!D2:D7297) -> 63 | S31: =SUM(Buitentemperatuur!D2:D7297) -> 63 | T31: =SUM(Buitentemperatuur!D2:D8641) -> 68 | U31: =SUM(Buitentemperatuur!D2:D8641) -> 68 | V31: =SUM(Buitentemperatuur!D2:D8641) -> 68 | W31: =SUM(Buitentemperatuur!D2:D9985) -> 75 | X31: =SUM(Buitentemperatuur!D2:D9985) -> 75 | Y31: =SUM(Buitentemperatuur!D2:D9985) -> 75 | Z31: =SUM(Buitentemperatuur!D2:D11329) -> 88 | AA31: =SUM(Buitentemperatuur!D2:D11329) -> 88 | AB31: =SUM(Buitentemperatuur!D2:D11329) -> 88 | AC31: =SUM(Buitentemperatuur!D2:D12673) -> 96 | AD31: =SUM(Buitentemperatuur!D2:D12673) -> 96 | AE31: =SUM(Buitentemperatuur!D2:D12673) -> 96 | AF31: =SUM(Buitentemperatuur!D2:D14017) -> 106 | AG31: =SUM(Buitentemperatuur!D2:D14017) -> 106 | AH31: =SUM(Buitentemperatuur!D2:D14017) -> 106
A32: forcing buiten?: | B32: =SUM(Buitentemperatuur!E2:E577) -> 8.717447917 | C32: =SUM(Buitentemperatuur!E2:E577) -> 8.717447917 | D32: =SUM(Buitentemperatuur!E2:E577) -> 8.717447917 | E32: =SUM(Buitentemperatuur!E2:E1921) -> 14.69401042 | F32: =SUM(Buitentemperatuur!E2:E1921) -> 14.69401042 | G32: =SUM(Buitentemperatuur!E2:E1921) -> 14.69401042 | H32: =SUM(Buitentemperatuur!E2:E3265) -> 38.17057292 | I32: =SUM(Buitentemperatuur!E2:E3265) -> 38.17057292 | J32: =SUM(Buitentemperatuur!E2:E3265) -> 38.17057292 | K32: =SUM(Buitentemperatuur!E2:E4609) -> 43.63151042 | L32: =SUM(Buitentemperatuur!E2:E4609) -> 43.63151042 | M32: =SUM(Buitentemperatuur!E2:E4609) -> 43.63151042 | N32: =SUM(Buitentemperatuur!E2:E5953) -> 44.86002604 | O32: =SUM(Buitentemperatuur!E2:E5953) -> 44.86002604 | P32: =SUM(Buitentemperatuur!E2:E5953) -> 44.86002604 | Q32: =SUM(Buitentemperatuur!E2:E7297) -> 57.16927083 | R32: =SUM(Buitentemperatuur!E2:E7297) -> 57.16927083 | S32: =SUM(Buitentemperatuur!E2:E7297) -> 57.16927083 | T32: =SUM(Buitentemperatuur!E2:E8641) -> 63.86783854 | U32: =SUM(Buitentemperatuur!E2:E8641) -> 63.86783854 | V32: =SUM(Buitentemperatuur!E2:E8641) -> 63.86783854 | W32: =SUM(Buitentemperatuur!E2:E9985) -> 106.266276 | X32: =SUM(Buitentemperatuur!E2:E9985) -> 106.266276 | Y32: =SUM(Buitentemperatuur!E2:E9985) -> 106.266276 | Z32: =SUM(Buitentemperatuur!E2:E11329) -> 118.6614583 | AA32: =SUM(Buitentemperatuur!E2:E11329) -> 118.6614583 | AB32: =SUM(Buitentemperatuur!E2:E11329) -> 118.6614583 | AC32: =SUM(Buitentemperatuur!E2:E12673) -> 156.7109375 | AD32: =SUM(Buitentemperatuur!E2:E12673) -> 156.7109375 | AE32: =SUM(Buitentemperatuur!E2:E12673) -> 156.7109375 | AF32: =SUM(Buitentemperatuur!E2:E14017) -> 182.8710938 | AG32: =SUM(Buitentemperatuur!E2:E14017) -> 182.8710938 | AH32: =SUM(Buitentemperatuur!E2:E14017) -> 182.8710938
A33: forcing binnen tot uitlopen bladknoppen (Knappe Knoppenschaal fase 3)?: | B33: NA | C33: NA | D33: NA | E33: =SUM(Binnentemperatuur!D1922:D13345) -> 1549.651042 | F33: =SUM(Binnentemperatuur!D1922:D13345) -> 1549.651042 | G33: =SUM(Binnentemperatuur!D1922:D13345) -> 1549.651042 | H33: =SUM(Binnentemperatuur!D3266:D10657) -> 986.3782552 | I33: =SUM(Binnentemperatuur!D3266:D10657) -> 986.3782552 | J33: =SUM(Binnentemperatuur!D3266:D12001) -> 1170.414714 | K33: =SUM(Binnentemperatuur!D4610:D12001) -> 998.2747396 | L33: =SUM(Binnentemperatuur!D4610:D12673) -> 1095.98112 | M33: =SUM(Binnentemperatuur!D4610:D12673) -> 1095.98112 | N33: NA | O33: =SUM(Binnentemperatuur!D5954:D14017) -> 1101.261068 | P33: =SUM(Binnentemperatuur!D5954:D14689) -> 1197.229167 | Q33: =SUM(Binnentemperatuur!D7298:D12001) -> 628.6634115 | R33: =SUM(Binnentemperatuur!D7298:D12001) -> 628.6634115 | S33: =SUM(Binnentemperatuur!D7298:D12673) -> 726.3697917 | T33: =SUM(Binnentemperatuur!D8642:D12673) -> 558.5917969 | U33: =SUM(Binnentemperatuur!D8642:D12673) -> 558.5917969 | V33: =SUM(Binnentemperatuur!D8642:D12673) -> 558.5917969 | W33: =SUM(Binnentemperatuur!D9986:D14689) -> 654.2109375 | X33: =SUM(Binnentemperatuur!D9986:D14689) -> 654.2109375 | Y33: =SUM(Binnentemperatuur!D9986:D14689) -> 654.2109375 | Z33: =SUM(Binnentemperatuur!D11330:D14689) -> 473.3203125 | AA33: =SUM(Binnentemperatuur!D11330:D14689) -> 473.3203125 | AB33: =SUM(Binnentemperatuur!D11330:D14689) -> 473.3203125 | AC33: =SUM(Binnentemperatuur!D12674:D14017) -> 186.2779948 | AD33: =SUM(Binnentemperatuur!D12674:D14017) -> 186.2779948 | AE33: =SUM(Binnentemperatuur!D12674:D14017) -> 186.2779948 | AF33: =SUM(Binnentemperatuur!D14018:D14689) -> 95.96809896 | AG33: =SUM(Binnentemperatuur!D14018:D14689) -> 95.96809896 | AH33: =SUM(Binnentemperatuur!D14018:D14689) -> 95.96809896
A34: totale forcing | B34: NA | C34: NA | D34: NA | E34: =E32+E33 -> 1564.345052 | F34: 1564.345052 | G34: 1564.345052 | H34: 1024.548828 | I34: 1024.548828 | J34: 1208.585286 | K34: 1041.90625 | L34: 1139.61263 | M34: 1139.61263 | N34: NA | O34: =O32+O33 -> 1146.121094 | P34: 1242.089193 | Q34: 685.8326823 | R34: 685.8326823 | S34: 783.5390625 | T34: 622.4596354 | U34: 622.4596354 | V34: 622.4596354 | W34: 760.4772135 | X34: 760.4772135 | Y34: 760.4772135 | Z34: 591.9817708 | AA34: 591.9817708 | AB34: 591.9817708 | AC34: 342.9889323 | AD34: 342.9889323 | AE34: 342.9889323 | AF34: 278.8391927 | AG34: 278.8391927 | AH34: 278.8391927
A35: gemiddelde totale forcing | B35: NA | E35: =AVERAGE(E34,F34,G34) -> 1564.345052 | H35: =AVERAGE(H34,I34,J34) -> 1085.894314 | K35: =AVERAGE(K34,L34,M34) -> 1107.043837 | N35: =AVERAGE(N34,O34,P34) -> 1194.105143 | Q35: =AVERAGE(Q34,R34,S34) -> 718.4014757 | T35: =AVERAGE(T34,U34,V34) -> 622.4596354 | W35: =AVERAGE(W34,X34,Y34) -> 760.4772135 | Z35: =AVERAGE(Z34,AA34,AB34) -> 591.9817708 | AC35: =AVERAGE(AC34,AD34,AE34) -> 342.9889323 | AF35: =AVERAGE(AF34,AG34,AH34) -> 278.8391927

Sheet Resultaat
